[Event "Titled Tuesday Blitz July 20 2021"]
[White "Wilson, Elvin"]
[Black "Arkell, Keith C"]
[WhiteFideId "2014874"]
[BlackFideId "400270"]
[WhiteElo "2330"]
[BlackElo "2398"]
[Result "0-1"]
[Round "06"]
[TimeControl "180+1"]
[Date "2021.07.21"]
[WhiteClock "0:00:16"]
[BlackClock "0:01:29"]

1. c4 {[%clk 0:03:00]}  c5 {[%clk 0:02:59]} 2. g3 {[%clk 0:02:55]}  Nc6 {[%clk 0:02:59]} 3. Bg2 {[%clk 0:02:55]}  g6 {[%clk 0:03:00]} 4. Nc3 {[%clk 0:02:55]}  Bg7 {[%clk 0:03:00]} 5. e4 {[%clk 0:02:56]}  e6 {[%clk 0:02:59]} 6. Nge2 {[%clk 0:02:56]}  Nge7 {[%clk 0:03:00]} 7. O-O {[%clk 0:02:56]}  O-O {[%clk 0:02:59]} 8. d3 {[%clk 0:02:56]}  a6 {[%clk 0:02:59]} 9. Be3 {[%clk 0:02:56]}  Nd4 {[%clk 0:03:00]} 10. Rb1 {[%clk 0:02:53]}  Nec6 {[%clk 0:03:00]} 11. Nc1 {[%clk 0:02:47]}  b5 {[%clk 0:03:00]} 12. b3 {[%clk 0:02:43]}  Rb8 {[%clk 0:02:58]} 13. f4 {[%clk 0:02:32]}  d6 {[%clk 0:02:48]} 14. Kh1 {[%clk 0:02:31]}  f5 {[%clk 0:02:46]} 15. N1e2 {[%clk 0:02:23]}  Qe7 {[%clk 0:02:42]} 16. Bg1 {[%clk 0:02:22]}  h5 {[%clk 0:02:39]} 17. Nxd4 {[%clk 0:02:16]}  Nxd4 {[%clk 0:02:39]} 18. Ne2 {[%clk 0:02:16]}  h4 {[%clk 0:02:38]} 19. Nxd4 {[%clk 0:02:16]}  Bxd4 {[%clk 0:02:38]} 20. Bxd4 {[%clk 0:02:12]}  cxd4 {[%clk 0:02:39]} 21. g4 {[%clk 0:02:03]}  fxe4 {[%clk 0:02:38]} 22. dxe4 {[%clk 0:02:01]}  e5 {[%clk 0:02:35]} 23. f5 {[%clk 0:01:45]}  bxc4 {[%clk 0:02:35]} 24. bxc4 {[%clk 0:01:22]}  Rxb1 {[%clk 0:02:36]} 25. Qxb1 {[%clk 0:01:22]}  Qg5 {[%clk 0:02:32]} 26. h3 {[%clk 0:01:18]}  Bd7 {[%clk 0:02:23]} 27. Qb6 {[%clk 0:01:15]}  Qe7 {[%clk 0:02:05]} 28. Qxa6 {[%clk 0:01:14]}  Rb8 {[%clk 0:02:05]} 29. Qa7 {[%clk 0:01:09]}  Rb2 {[%clk 0:02:02]} 30. f6 {[%clk 0:01:06]}  Qf7 {[%clk 0:02:03]} 31. g5 {[%clk 0:01:00]}  Be6 {[%clk 0:02:02]} 32. Qa3 {[%clk 0:00:51]}  Rb6 {[%clk 0:01:56]} 33. c5 {[%clk 0:00:49]}  dxc5 {[%clk 0:01:56]} 34. Qxc5 {[%clk 0:00:50]}  Rb8 {[%clk 0:01:39]} 35. Qxe5 {[%clk 0:00:49]}  Rd8 {[%clk 0:01:39]} 36. Rd1 {[%clk 0:00:46]}  d3 {[%clk 0:01:40]} 37. Qc3 {[%clk 0:00:36]}  Qd7 {[%clk 0:01:39]} 38. Kh2 {[%clk 0:00:31]}  Qd6+ {[%clk 0:01:38]} 39. e5 {[%clk 0:00:30]}  Qa6 {[%clk 0:01:34]} 40. a3 {[%clk 0:00:24]}  Qb5 {[%clk 0:01:32]} 41. Be4 {[%clk 0:00:22]}  d2 {[%clk 0:01:31]} 42. Bxg6 {[%clk 0:00:19]}  Qe2+ {[%clk 0:01:29]} 43. Kg1 {[%clk 0:00:16]}  Qxd1+ {[%clk 0:01:29]} 44. Kg2 {[%clk 0:00:16]}  Qe2+ {[%clk 0:01:29]} 0-1


[Site "https://www.chess.com"]

[Event "Titled Tuesday Blitz July 20 2021"]
[White "Zherebtsova, Alexandra"]
[Black "Martins, Igor Carvalho Ribeiro"]
[WhiteFideId "24129518"]
[BlackFideId "2162962"]
[WhiteElo "2025"]
[BlackElo "2530"]
[Result "1-0"]
[Round "06"]
[TimeControl "180+1"]
[Date "2021.07.21"]
[WhiteClock "0:00:04"]
[BlackClock "0:00:21"]

1. d4 {[%clk 0:02:53]}  Nf6 {[%clk 0:02:59]} 2. Nf3 {[%clk 0:02:52]}  g6 {[%clk 0:02:58]} 3. c4 {[%clk 0:02:52]}  Bg7 {[%clk 0:02:58]} 4. Nc3 {[%clk 0:02:52]}  d6 {[%clk 0:02:58]} 5. e4 {[%clk 0:02:51]}  O-O {[%clk 0:02:57]} 6. h3 {[%clk 0:02:47]}  c5 {[%clk 0:02:57]} 7. d5 {[%clk 0:02:46]}  b5 {[%clk 0:02:57]} 8. cxb5 {[%clk 0:02:38]}  a6 {[%clk 0:02:56]} 9. bxa6 {[%clk 0:02:35]}  Qa5 {[%clk 0:02:55]} 10. Bd2 {[%clk 0:02:34]}  Bxa6 {[%clk 0:02:54]} 11. Bxa6 {[%clk 0:02:33]}  Qxa6 {[%clk 0:02:54]} 12. Qe2 {[%clk 0:02:30]}  Nbd7 {[%clk 0:02:53]} 13. Qxa6 {[%clk 0:02:23]}  Rxa6 {[%clk 0:02:52]} 14. O-O {[%clk 0:02:09]}  Rb8 {[%clk 0:02:51]} 15. b3 {[%clk 0:01:43]}  Ne8 {[%clk 0:02:26]} 16. Rfb1 {[%clk 0:01:28]}  Nc7 {[%clk 0:02:25]} 17. a4 {[%clk 0:01:23]}  Rab6 {[%clk 0:02:08]} 18. Ra3 {[%clk 0:00:56]}  e6 {[%clk 0:01:41]} 19. dxe6 {[%clk 0:00:52]}  fxe6 {[%clk 0:01:40]} 20. a5 {[%clk 0:00:51]}  Ra6 {[%clk 0:01:35]} 21. Ne2 {[%clk 0:00:36]}  Nb5 {[%clk 0:01:28]} 22. Ra4 {[%clk 0:00:35]}  d5 {[%clk 0:01:28]} 23. exd5 {[%clk 0:00:33]}  exd5 {[%clk 0:01:27]} 24. Bf4 {[%clk 0:00:27]}  Re8 {[%clk 0:01:23]} 25. Re1 {[%clk 0:00:15]}  Rea8 {[%clk 0:00:56]} 26. Bd2 {[%clk 0:00:12]}  Nf6 {[%clk 0:00:48]} 27. Nf4 {[%clk 0:00:12]}  Rd8 {[%clk 0:00:45]} 28. Re6 {[%clk 0:00:11]}  Rdd6 {[%clk 0:00:41]} 29. Rxd6 {[%clk 0:00:11]}  Nxd6 {[%clk 0:00:41]} 30. Ne6 {[%clk 0:00:09]}  Nfe4 {[%clk 0:00:38]} 31. Be3 {[%clk 0:00:08]}  d4 {[%clk 0:00:37]} 32. Bf4 {[%clk 0:00:08]}  Nb5 {[%clk 0:00:34]} 33. Nd2 {[%clk 0:00:06]}  Nxd2 {[%clk 0:00:33]} 34. Bxd2 {[%clk 0:00:06]}  Kf7 {[%clk 0:00:33]} 35. Nxc5 {[%clk 0:00:06]}  Rc6 {[%clk 0:00:31]} 36. Nd3 {[%clk 0:00:06]}  Rc2 {[%clk 0:00:31]} 37. Bf4 {[%clk 0:00:06]}  Ke6 {[%clk 0:00:30]} 38. a6 {[%clk 0:00:06]}  Rc3 {[%clk 0:00:29]} 39. Ne1 {[%clk 0:00:04]}  Rxb3 {[%clk 0:00:29]} 40. a7 {[%clk 0:00:04]}  Nxa7 {[%clk 0:00:27]} 41. Rxa7 {[%clk 0:00:04]}  Rb1 {[%clk 0:00:28]} 42. Ra6+ {[%clk 0:00:04]}  Kd5 {[%clk 0:00:28]} 43. Kf1 {[%clk 0:00:05]}  d3 {[%clk 0:00:26]} 44. Rd6+ {[%clk 0:00:05]}  Ke4 {[%clk 0:00:26]} 45. Bg3 {[%clk 0:00:03]}  Bc3 {[%clk 0:00:26]} 46. f3+ {[%clk 0:00:03]}  Kf5 {[%clk 0:00:25]} 47. Rxd3 {[%clk 0:00:04]}  Bf6 {[%clk 0:00:22]} 48. Ke2 {[%clk 0:00:04]}  Rb2+ {[%clk 0:00:21]} 49. Rd2 {[%clk 0:00:04]} 1-0


[Site "https://www.chess.com"]

[Event "Titled Tuesday Blitz July 20 2021"]
[White "Zhigalko, Sergei"]
[Black "Trakru, Rohun"]
[WhiteFideId "13502956"]
[BlackFideId "2097613"]
[WhiteElo "2662"]
[BlackElo "1746"]
[Result "1-0"]
[Round "06"]
[TimeControl "180+1"]
[Date "2021.07.20"]
[WhiteClock "0:01:09"]
[BlackClock "0:00:02"]

1. e4 {[%clk 0:03:00]}  c6 {[%clk 0:02:59]} 2. d4 {[%clk 0:03:01]}  d5 {[%clk 0:03:00]} 3. e5 {[%clk 0:03:01]}  c5 {[%clk 0:03:00]} 4. Nf3 {[%clk 0:03:02]}  cxd4 {[%clk 0:02:50]} 5. Qxd4 {[%clk 0:03:02]}  Nc6 {[%clk 0:02:42]} 6. Qf4 {[%clk 0:03:03]}  g6 {[%clk 0:02:32]} 7. Nc3 {[%clk 0:03:02]}  Bh6 {[%clk 0:01:58]} 8. Qh4 {[%clk 0:02:48]}  e6 {[%clk 0:01:38]} 9. Qg3 {[%clk 0:02:33]}  Bxc1 {[%clk 0:01:03]} 10. Rxc1 {[%clk 0:02:32]}  f6 {[%clk 0:01:03]} 11. Bb5 {[%clk 0:02:31]}  Bd7 {[%clk 0:00:54]} 12. O-O {[%clk 0:02:29]}  Nh6 {[%clk 0:00:38]} 13. Qh4 {[%clk 0:01:56]}  Nf5 {[%clk 0:00:33]} 14. Qxf6 {[%clk 0:01:56]}  Qxf6 {[%clk 0:00:28]} 15. exf6 {[%clk 0:01:57]}  O-O {[%clk 0:00:19]} 16. g4 {[%clk 0:01:57]}  Nh6 {[%clk 0:00:11]} 17. g5 {[%clk 0:01:38]}  Nf7 {[%clk 0:00:11]} 18. Rfe1 {[%clk 0:01:38]}  Rfe8 {[%clk 0:00:08]} 19. h4 {[%clk 0:01:38]}  a6 {[%clk 0:00:07]} 20. Bxc6 {[%clk 0:01:38]}  bxc6 {[%clk 0:00:04]} 21. Ne5 {[%clk 0:01:39]}  Nxe5 {[%clk 0:00:04]} 22. Rxe5 {[%clk 0:01:40]}  Rab8 {[%clk 0:00:05]} 23. Na4 {[%clk 0:01:34]}  Rb4 {[%clk 0:00:05]} 24. Nc5 {[%clk 0:01:35]}  Bc8 {[%clk 0:00:05]} 25. c4 {[%clk 0:01:13]}  Rxb2 {[%clk 0:00:03]} 26. cxd5 {[%clk 0:01:11]}  cxd5 {[%clk 0:00:04]} 27. Nd3 {[%clk 0:01:09]}  Rxa2 {[%clk 0:00:03]} 28. Rc7 {[%clk 0:01:09]}  Kf8 {[%clk 0:00:01]} 29. Rxh7 {[%clk 0:01:09]}  Kg8 {[%clk 0:00:02]} 30. Rg7+ {[%clk 0:01:09]} 1-0


[Site "https://www.chess.com"]

[Event "Titled Tuesday Blitz July 20 2021"]
[White "Zubov, Alexander"]
[Black "Onyshchuk, Volodymyr"]
[WhiteFideId "14109409"]
[BlackFideId "14114038"]
[WhiteElo "2740"]
[BlackElo "2603"]
[Result "0-1"]
[Round "06"]
[TimeControl "180+1"]
[Date "2021.07.20"]
[WhiteClock "0:00:15"]
[BlackClock "0:00:24"]

1. d4 {[%clk 0:03:00]}  d6 {[%clk 0:02:59]} 2. Bg5 {[%clk 0:03:00]}  g6 {[%clk 0:02:56]} 3. c3 {[%clk 0:02:59]}  Bg7 {[%clk 0:02:56]} 4. Nd2 {[%clk 0:02:58]}  h6 {[%clk 0:02:54]} 5. Bh4 {[%clk 0:02:58]}  Nf6 {[%clk 0:02:54]} 6. e3 {[%clk 0:02:56]}  O-O {[%clk 0:02:54]} 7. Ngf3 {[%clk 0:02:56]}  Nbd7 {[%clk 0:02:50]} 8. Nc4 {[%clk 0:02:51]}  b6 {[%clk 0:02:47]} 9. Be2 {[%clk 0:02:50]}  Bb7 {[%clk 0:02:47]} 10. O-O {[%clk 0:02:49]}  a6 {[%clk 0:02:47]} 11. a4 {[%clk 0:02:43]}  Qe8 {[%clk 0:02:46]} 12. Qb3 {[%clk 0:02:36]}  Rb8 {[%clk 0:02:43]} 13. Rfd1 {[%clk 0:02:34]}  e5 {[%clk 0:02:43]} 14. Qc2 {[%clk 0:02:20]}  exd4 {[%clk 0:02:36]} 15. cxd4 {[%clk 0:02:19]}  Nd5 {[%clk 0:02:33]} 16. Bg3 {[%clk 0:02:06]}  Qe7 {[%clk 0:02:20]} 17. Re1 {[%clk 0:02:04]}  f5 {[%clk 0:02:18]} 18. Bf1 {[%clk 0:02:04]}  N7f6 {[%clk 0:02:17]} 19. Ncd2 {[%clk 0:02:01]}  Rbe8 {[%clk 0:02:12]} 20. Rac1 {[%clk 0:01:59]}  Kh7 {[%clk 0:02:11]} 21. b4 {[%clk 0:01:58]}  Qf7 {[%clk 0:02:07]} 22. b5 {[%clk 0:01:51]}  a5 {[%clk 0:02:06]} 23. h3 {[%clk 0:01:45]}  Re7 {[%clk 0:02:06]} 24. Bc4 {[%clk 0:01:44]}  Kh8 {[%clk 0:01:55]} 25. Qb3 {[%clk 0:01:41]}  Rfe8 {[%clk 0:01:52]} 26. Bh2 {[%clk 0:01:32]}  Qf8 {[%clk 0:01:51]} 27. Nh4 {[%clk 0:01:27]}  Kh7 {[%clk 0:01:50]} 28. Qb1 {[%clk 0:01:27]}  Nb4 {[%clk 0:01:47]} 29. Bf1 {[%clk 0:01:20]}  Ne4 {[%clk 0:01:46]} 30. Nhf3 {[%clk 0:01:18]}  Bd5 {[%clk 0:01:35]} 31. Bc4 {[%clk 0:01:17]}  Bb7 {[%clk 0:01:32]} 32. Bf1 {[%clk 0:01:13]}  g5 {[%clk 0:01:31]} 33. Red1 {[%clk 0:01:01]}  Qf7 {[%clk 0:01:30]} 34. Qb3 {[%clk 0:00:59]}  Qg6 {[%clk 0:01:28]} 35. Nxe4 {[%clk 0:00:55]}  Bxe4 {[%clk 0:01:26]} 36. Nd2 {[%clk 0:00:56]}  Bd5 {[%clk 0:01:26]} 37. Qb1 {[%clk 0:00:55]}  h5 {[%clk 0:01:18]} 38. Bc4 {[%clk 0:00:51]}  Bb7 {[%clk 0:01:17]} 39. Be2 {[%clk 0:00:46]}  h4 {[%clk 0:01:11]} 40. Bf3 {[%clk 0:00:46]}  Bc8 {[%clk 0:00:59]} 41. Rc4 {[%clk 0:00:43]}  Be6 {[%clk 0:00:56]} 42. Rc3 {[%clk 0:00:41]}  Rf7 {[%clk 0:00:51]} 43. Rdc1 {[%clk 0:00:40]}  Ree7 {[%clk 0:00:52]} 44. Be2 {[%clk 0:00:31]}  Kh8 {[%clk 0:00:49]} 45. Bc4 {[%clk 0:00:30]}  Bxc4 {[%clk 0:00:41]} 46. Rxc4 {[%clk 0:00:31]}  Qe6 {[%clk 0:00:35]} 47. Nf3 {[%clk 0:00:24]}  Bf6 {[%clk 0:00:34]} 48. d5 {[%clk 0:00:24]}  Nxd5 {[%clk 0:00:33]} 49. Nd4 {[%clk 0:00:24]}  Bxd4 {[%clk 0:00:33]} 50. Rxd4 {[%clk 0:00:25]}  Nb4 {[%clk 0:00:32]} 51. Rcd1 {[%clk 0:00:22]}  Kh7 {[%clk 0:00:31]} 52. Qc1 {[%clk 0:00:21]}  Qg6 {[%clk 0:00:31]} 53. Qc4 {[%clk 0:00:21]}  Re4 {[%clk 0:00:30]} 54. Rxe4 {[%clk 0:00:20]}  fxe4 {[%clk 0:00:30]} 55. Rd2 {[%clk 0:00:19]}  Nd3 {[%clk 0:00:30]} 56. f3 {[%clk 0:00:19]}  Nc5 {[%clk 0:00:30]} 57. f4 {[%clk 0:00:19]}  Rf5 {[%clk 0:00:26]} 58. Rf2 {[%clk 0:00:16]}  Qf7 {[%clk 0:00:24]} 59. g4 {[%clk 0:00:15]}  Qxc4 {[%clk 0:00:24]} 0-1


[Site "https://www.chess.com"]

[Event "Titled Tuesday Blitz July 20 2021"]
[White "volunteers1998"]
[Black "Gontcharov, Vladislav"]
[BlackFideId "4123492"]
[WhiteElo "2208"]
[BlackElo "2503"]
[Result "1-0"]
[Round "06"]
[TimeControl "180+1"]
[Date "2021.07.21"]
[WhiteClock "0:01:22"]
[BlackClock "0:00:08"]

1. e4 {[%clk 0:03:00]}  e6 {[%clk 0:02:59]} 2. Nf3 {[%clk 0:02:58]}  d5 {[%clk 0:02:59]} 3. Nc3 {[%clk 0:02:56]}  Nf6 {[%clk 0:02:47]} 4. e5 {[%clk 0:02:54]}  Nfd7 {[%clk 0:02:48]} 5. d4 {[%clk 0:02:52]}  c5 {[%clk 0:02:48]} 6. dxc5 {[%clk 0:02:50]}  Nc6 {[%clk 0:02:47]} 7. Bf4 {[%clk 0:02:46]}  h6 {[%clk 0:02:44]} 8. Bd3 {[%clk 0:02:43]}  Bxc5 {[%clk 0:02:41]} 9. O-O {[%clk 0:02:40]}  g5 {[%clk 0:02:35]} 10. Bg3 {[%clk 0:02:38]}  g4 {[%clk 0:02:35]} 11. Nd2 {[%clk 0:02:35]}  Ndxe5 {[%clk 0:02:34]} 12. Bb5 {[%clk 0:02:30]}  Bd7 {[%clk 0:02:23]} 13. Re1 {[%clk 0:02:24]}  a6 {[%clk 0:01:40]} 14. Bxc6 {[%clk 0:02:21]}  Nxc6 {[%clk 0:01:39]} 15. Nxd5 {[%clk 0:02:19]}  Rc8 {[%clk 0:01:30]} 16. Qxg4 {[%clk 0:02:08]}  Kf8 {[%clk 0:01:14]} 17. Ne3 {[%clk 0:01:59]}  h5 {[%clk 0:01:06]} 18. Qc4 {[%clk 0:01:55]}  Nd4 {[%clk 0:00:57]} 19. Rad1 {[%clk 0:01:47]}  Bb5 {[%clk 0:00:57]} 20. Qc3 {[%clk 0:01:44]}  h4 {[%clk 0:00:48]} 21. Be5 {[%clk 0:01:41]}  Rg8 {[%clk 0:00:47]} 22. Ne4 {[%clk 0:01:33]}  Nf3+ {[%clk 0:00:16]} 23. Kh1 {[%clk 0:01:30]}  Bd6 {[%clk 0:00:08]} 24. Bxd6+ {[%clk 0:01:24]}  Qxd6 {[%clk 0:00:08]} 25. Qxc8+ {[%clk 0:01:22]} 1-0


[Site "https://www.chess.com"]

[Event "Titled Tuesday Blitz July 20 2021"]
[White "Ahmadzada, Ahmad"]
[Black "ValeriyGrinev"]
[WhiteFideId "13413007"]
[WhiteElo "2226"]
[BlackElo "2636"]
[Result "1-0"]
[Round "07"]
[TimeControl "180+1"]
[Date "2021.07.20"]
[WhiteClock "0:01:08"]
[BlackClock "0:00:38"]

1. Nf3 {[%clk 0:03:00]}  Nf6 {[%clk 0:02:59]} 2. g3 {[%clk 0:03:01]}  b6 {[%clk 0:02:57]} 3. Bg2 {[%clk 0:03:01]}  Bb7 {[%clk 0:02:58]} 4. O-O {[%clk 0:03:02]}  e6 {[%clk 0:02:58]} 5. c4 {[%clk 0:03:02]}  c5 {[%clk 0:02:58]} 6. Nc3 {[%clk 0:02:59]}  Be7 {[%clk 0:02:58]} 7. Re1 {[%clk 0:02:59]}  d5 {[%clk 0:02:45]} 8. cxd5 {[%clk 0:02:59]}  Nxd5 {[%clk 0:02:46]} 9. e4 {[%clk 0:02:59]}  Nxc3 {[%clk 0:02:46]} 10. bxc3 {[%clk 0:02:59]}  O-O {[%clk 0:02:43]} 11. d4 {[%clk 0:02:59]}  cxd4 {[%clk 0:02:44]} 12. cxd4 {[%clk 0:02:59]}  Nc6 {[%clk 0:02:41]} 13. Bb2 {[%clk 0:02:59]}  Na5 {[%clk 0:02:33]} 14. Ne5 {[%clk 0:02:52]}  Rc8 {[%clk 0:02:30]} 15. d5 {[%clk 0:02:50]}  exd5 {[%clk 0:02:28]} 16. exd5 {[%clk 0:02:48]}  Bf6 {[%clk 0:02:29]} 17. Qg4 {[%clk 0:02:23]}  Rc2 {[%clk 0:02:23]} 18. Ba3 {[%clk 0:02:18]}  Re8 {[%clk 0:02:18]} 19. Nxf7 {[%clk 0:01:54]}  Kxf7 {[%clk 0:01:53]} 20. Qh5+ {[%clk 0:01:46]}  g6 {[%clk 0:01:53]} 21. Qxh7+ {[%clk 0:01:45]}  Bg7 {[%clk 0:01:54]} 22. Be4 {[%clk 0:01:14]}  Rxe4 {[%clk 0:01:34]} 23. Rxe4 {[%clk 0:01:12]}  Rc7 {[%clk 0:00:48]} 24. Rf4+ {[%clk 0:01:09]}  Qf6 {[%clk 0:00:37]} 25. Rxf6+ {[%clk 0:01:08]}  Kxf6 {[%clk 0:00:38]} 26. Bb2+ {[%clk 0:01:08]} 1-0


[Site "https://www.chess.com"]

[Event "Titled Tuesday Blitz July 20 2021"]
[White "Aldokhin, Ivan"]
[Black "Kobalia, Mikhail"]
[WhiteFideId "24115720"]
[BlackFideId "4119150"]
[WhiteElo "2306"]
[BlackElo "2569"]
[Result "0-1"]
[Round "07"]
[TimeControl "180+1"]
[Date "2021.07.20"]
[WhiteClock "0:00:01"]
[BlackClock "0:00:26"]

1. e4 {[%clk 0:03:00]}  c6 {[%clk 0:02:59]} 2. Nc3 {[%clk 0:03:00]}  d5 {[%clk 0:02:59]} 3. d4 {[%clk 0:03:00]}  dxe4 {[%clk 0:02:57]} 4. Nxe4 {[%clk 0:03:01]}  Bf5 {[%clk 0:02:57]} 5. Ng3 {[%clk 0:03:00]}  Bg6 {[%clk 0:02:57]} 6. h4 {[%clk 0:03:01]}  h6 {[%clk 0:02:55]} 7. Nh3 {[%clk 0:02:58]}  e5 {[%clk 0:02:42]} 8. Be3 {[%clk 0:02:26]}  exd4 {[%clk 0:02:38]} 9. Bxd4 {[%clk 0:02:08]}  Bxc2 {[%clk 0:02:36]} 10. Qd2 {[%clk 0:01:42]}  Nf6 {[%clk 0:02:23]} 11. Bxf6 {[%clk 0:01:15]}  Qxf6 {[%clk 0:02:22]} 12. Qxc2 {[%clk 0:01:04]}  Bb4+ {[%clk 0:02:20]} 13. Ke2 {[%clk 0:01:04]}  O-O {[%clk 0:02:16]} 14. Ne4 {[%clk 0:00:41]}  Re8 {[%clk 0:01:53]} 15. f4 {[%clk 0:00:39]}  Rxe4+ {[%clk 0:00:58]} 16. Qxe4 {[%clk 0:00:35]}  Qxb2+ {[%clk 0:00:58]} 17. Kf3 {[%clk 0:00:33]}  Qxa1 {[%clk 0:00:58]} 18. Qxb4 {[%clk 0:00:08]}  Na6 {[%clk 0:00:57]} 19. Qe4 {[%clk 0:00:07]}  Nc5 {[%clk 0:00:47]} 20. Qe5 {[%clk 0:00:07]}  Qd1+ {[%clk 0:00:44]} 21. Kg3 {[%clk 0:00:04]}  Nd7 {[%clk 0:00:35]} 22. Qe2 {[%clk 0:00:03]}  Qd6 {[%clk 0:00:33]} 23. Qd3 {[%clk 0:00:03]}  Qe7 {[%clk 0:00:31]} 24. Nf2 {[%clk 0:00:03]}  Nf6 {[%clk 0:00:30]} 25. Be2 {[%clk 0:00:03]}  Rd8 {[%clk 0:00:29]} 26. Qc4 {[%clk 0:00:02]}  Rd2 {[%clk 0:00:28]} 27. Bf3 {[%clk 0:00:01]}  Qe3 {[%clk 0:00:26]} 0-1


[Site "https://www.chess.com"]

[Event "Titled Tuesday Blitz July 20 2021"]
[White "Ambartsumova, Karina"]
[Black "Dzierzak, Radoslaw"]
[WhiteFideId "4166299"]
[BlackFideId "1161407"]
[WhiteElo "2262"]
[BlackElo "2019"]
[Result "0-1"]
[Round "07"]
[TimeControl "180+1"]
[Date "2021.07.21"]
[WhiteClock "0:00:17"]
[BlackClock "0:00:18"]

1. e4 {[%clk 0:03:00]}  c5 {[%clk 0:02:59]} 2. Nf3 {[%clk 0:03:00]}  Nc6 {[%clk 0:02:58]} 3. d4 {[%clk 0:02:59]}  cxd4 {[%clk 0:02:59]} 4. Nxd4 {[%clk 0:03:00]}  e6 {[%clk 0:02:59]} 5. Nc3 {[%clk 0:03:00]}  Qc7 {[%clk 0:02:58]} 6. Be2 {[%clk 0:02:57]}  a6 {[%clk 0:02:58]} 7. O-O {[%clk 0:02:57]}  Nf6 {[%clk 0:02:58]} 8. Be3 {[%clk 0:02:57]}  Bb4 {[%clk 0:02:57]} 9. Nxc6 {[%clk 0:02:56]}  bxc6 {[%clk 0:02:52]} 10. f4 {[%clk 0:02:56]}  Bxc3 {[%clk 0:02:48]} 11. bxc3 {[%clk 0:02:56]}  Nxe4 {[%clk 0:02:48]} 12. Qd4 {[%clk 0:02:57]}  Nf6 {[%clk 0:02:47]} 13. f5 {[%clk 0:02:57]}  O-O {[%clk 0:02:27]} 14. Bf4 {[%clk 0:02:48]}  Qa7 {[%clk 0:02:23]} 15. Bd6 {[%clk 0:02:40]}  Qxd4+ {[%clk 0:02:21]} 16. cxd4 {[%clk 0:02:41]}  Re8 {[%clk 0:02:21]} 17. Bd3 {[%clk 0:02:40]}  a5 {[%clk 0:02:15]} 18. Rab1 {[%clk 0:02:24]}  Ba6 {[%clk 0:02:14]} 19. Bxa6 {[%clk 0:01:59]}  Rxa6 {[%clk 0:02:15]} 20. Rb7 {[%clk 0:02:00]}  h5 {[%clk 0:01:50]} 21. Be5 {[%clk 0:01:53]}  Ne4 {[%clk 0:01:04]} 22. Rxd7 {[%clk 0:01:48]}  f6 {[%clk 0:01:03]} 23. Bd6 {[%clk 0:00:56]}  exf5 {[%clk 0:00:55]} 24. Rxf5 {[%clk 0:00:40]}  Re6 {[%clk 0:00:55]} 25. Bc5 {[%clk 0:00:36]}  g6 {[%clk 0:00:55]} 26. Rf1 {[%clk 0:00:35]}  Ra8 {[%clk 0:00:55]} 27. Rb1 {[%clk 0:00:34]}  Rae8 {[%clk 0:00:55]} 28. g3 {[%clk 0:00:20]}  Nxc5 {[%clk 0:00:44]} 29. dxc5 {[%clk 0:00:21]}  Re1+ {[%clk 0:00:44]} 30. Rxe1 {[%clk 0:00:20]}  Rxe1+ {[%clk 0:00:45]} 31. Kf2 {[%clk 0:00:21]}  Rc1 {[%clk 0:00:45]} 32. Rd2 {[%clk 0:00:21]}  Kf7 {[%clk 0:00:45]} 33. Ke3 {[%clk 0:00:21]}  Ke6 {[%clk 0:00:36]} 34. Kd4 {[%clk 0:00:21]}  Re1 {[%clk 0:00:35]} 35. c3 {[%clk 0:00:15]}  f5 {[%clk 0:00:33]} 36. c4 {[%clk 0:00:16]}  g5 {[%clk 0:00:30]} 37. Rf2 {[%clk 0:00:12]}  Re4+ {[%clk 0:00:19]} 38. Kd3 {[%clk 0:00:12]}  Ke5 {[%clk 0:00:19]} 39. Rb2 {[%clk 0:00:06]}  f4 {[%clk 0:00:17]} 40. gxf4+ {[%clk 0:00:04]}  gxf4 {[%clk 0:00:16]} 41. Rb8 {[%clk 0:00:05]}  Re3+ {[%clk 0:00:16]} 42. Kd2 {[%clk 0:00:04]}  Kd4 {[%clk 0:00:17]} 43. Rf8 {[%clk 0:00:04]}  Rf3 {[%clk 0:00:15]} 44. Ke2 {[%clk 0:00:03]}  Re3+ {[%clk 0:00:15]} 45. Kf2 {[%clk 0:00:03]}  Kxc4 {[%clk 0:00:10]} 46. Rxf4+ {[%clk 0:00:03]}  Kd3 {[%clk 0:00:11]} 47. Rf3 {[%clk 0:00:03]}  Rxf3+ {[%clk 0:00:08]} 48. Kxf3 {[%clk 0:00:04]}  Kd4 {[%clk 0:00:09]} 49. h4 {[%clk 0:00:05]}  Kxc5 {[%clk 0:00:09]} 50. Kf4 {[%clk 0:00:06]}  Kb4 {[%clk 0:00:08]} 51. Kg5 {[%clk 0:00:06]}  c5 {[%clk 0:00:09]} 52. Kxh5 {[%clk 0:00:07]}  c4 {[%clk 0:00:10]} 53. Kg6 {[%clk 0:00:08]}  c3 {[%clk 0:00:10]} 54. h5 {[%clk 0:00:09]}  c2 {[%clk 0:00:11]} 55. h6 {[%clk 0:00:10]}  c1=Q {[%clk 0:00:12]} 56. h7 {[%clk 0:00:11]}  Qc3 {[%clk 0:00:11]} 57. Kf7 {[%clk 0:00:11]}  Qh8 {[%clk 0:00:11]} 58. Kg6 {[%clk 0:00:12]}  Ka3 {[%clk 0:00:12]} 59. Kh6 {[%clk 0:00:12]}  Kxa2 {[%clk 0:00:13]} 60. Kg6 {[%clk 0:00:13]}  a4 {[%clk 0:00:13]} 61. Kh6 {[%clk 0:00:14]}  a3 {[%clk 0:00:14]} 62. Kg6 {[%clk 0:00:14]}  Kb2 {[%clk 0:00:15]} 63. Kh6 {[%clk 0:00:15]}  a2 {[%clk 0:00:16]} 64. Kg6 {[%clk 0:00:16]}  a1=Q {[%clk 0:00:17]} 65. Kh6 {[%clk 0:00:17]}  Qg1 {[%clk 0:00:17]} 66. Kh5 {[%clk 0:00:17]}  Qxh7# {[%clk 0:00:18]} 0-1


[Site "https://www.chess.com"]

[Event "Titled Tuesday Blitz July 20 2021"]
[White "Bakalchuk, Johnatan"]
[Black "Pichot, Alan"]
[WhiteFideId "2810301"]
[BlackFideId "110973"]
[WhiteElo "2507"]
[BlackElo "2622"]
[Result "0-1"]
[Round "07"]
[TimeControl "180+1"]
[Date "2021.07.20"]
[WhiteClock "0:00:17"]
[BlackClock "0:01:54"]

1. c4 {[%clk 0:03:00]}  Nf6 {[%clk 0:02:59]} 2. Nf3 {[%clk 0:03:01]}  e6 {[%clk 0:02:59]} 3. g3 {[%clk 0:03:01]}  d5 {[%clk 0:02:59]} 4. b3 {[%clk 0:03:02]}  d4 {[%clk 0:02:58]} 5. Bg2 {[%clk 0:03:02]}  c5 {[%clk 0:02:58]} 6. O-O {[%clk 0:03:03]}  Nc6 {[%clk 0:02:59]} 7. e3 {[%clk 0:03:03]}  Bd6 {[%clk 0:02:59]} 8. exd4 {[%clk 0:02:56]}  cxd4 {[%clk 0:03:00]} 9. Na3 {[%clk 0:02:38]}  O-O {[%clk 0:03:00]} 10. Nc2 {[%clk 0:02:13]}  a5 {[%clk 0:02:59]} 11. d3 {[%clk 0:02:09]}  h6 {[%clk 0:02:59]} 12. a3 {[%clk 0:02:05]}  e5 {[%clk 0:02:59]} 13. Rb1 {[%clk 0:02:01]}  Bf5 {[%clk 0:02:44]} 14. b4 {[%clk 0:01:58]}  axb4 {[%clk 0:02:45]} 15. axb4 {[%clk 0:01:59]}  Qd7 {[%clk 0:02:37]} 16. Re1 {[%clk 0:01:57]}  Rfe8 {[%clk 0:02:37]} 17. c5 {[%clk 0:01:49]}  Bc7 {[%clk 0:02:31]} 18. b5 {[%clk 0:01:49]}  Nd8 {[%clk 0:02:31]} 19. Na3 {[%clk 0:01:45]}  Nd5 {[%clk 0:02:24]} 20. Qc2 {[%clk 0:00:34]}  Nc3 {[%clk 0:02:21]} 21. Ra1 {[%clk 0:00:34]}  e4 {[%clk 0:02:17]} 22. Nh4 {[%clk 0:00:29]}  exd3 {[%clk 0:02:15]} 23. Rxe8+ {[%clk 0:00:29]}  Qxe8 {[%clk 0:02:16]} 24. Qd2 {[%clk 0:00:28]}  Be4 {[%clk 0:02:12]} 25. Bf1 {[%clk 0:00:24]}  Ne6 {[%clk 0:02:05]} 26. Bb2 {[%clk 0:00:16]}  Nxc5 {[%clk 0:02:03]} 27. Re1 {[%clk 0:00:17]}  Nb3 {[%clk 0:01:54]} 0-1


[Site "https://www.chess.com"]